[Event "Athens of East Open 2019"]
[Site "Madurai"]
[Date "2019.08.10"]
[Round "2.4"]
[White "Tiwari Shivansh"]
[Black "Binu Sebastian"]
[Result "1-0"]
[ECO "A83"]
[WhiteElo "1593"]
[BlackElo "1435"]
[Annotator "NA"]
[PlyCount "125"]
[EventDate "2019.08.10"]
[EventType "swiss"]
[EventCountry "IND"]
[SourceTitle "playchess.com"]
[Source "ChessBase"]
[SourceQuality "1"]
[TimeControl "3600+30"]

1. d4 {[%emt 0:00:00]} f5 {[%emt 0:00:00]} 2. e4 {[%emt 0:00:57]} fxe4 {[%emt 0:00:00]} 3. Nc3 {[%emt 0:00:07]} Nf6 {[%emt 0:00:00]} 4. Bg5 {[%emt 0:00:06]} g6 {[%emt 0:00:00]} 5. Bxf6 {[%emt 0:00:44]} exf6 {[%emt 0:00:03]} 6. Nxe4 {[%emt 0:00:13]} d5 {[%emt 0:01:49]} 7. Nc3 {[%emt 0:00:44]} Bh6 {[%emt 0:02:52]} 8. Bd3 {[%emt 0:03:40]} O-O {[%emt 0:02:40]} 9. Nge2 {[%emt 0:01:56]} c6 {[%emt 0:02:14]} 10. O-O {[%emt 0:00:38]} f5 {[%emt 0:01:41]} 11. f4 {[%emt 0:02:17]} Bg7 {[%emt 0:01:02]} 12. Na4 {[%emt 0:01:34]} Nd7 13. b4 {[%emt 0:01:40]} Nf6 {[%emt 0:07:58]} 14. c3 {[%emt 0:01:58]} b6 {[%emt 0:01:47]} 15. Qd2 {[%emt 0:06:55]} Ne4 {[%emt 0:01:01]} 16. Qc2 {[%emt 0:01:53]} Kh8 {[%emt 0:04:15]} 17. Kh1 {[%emt 0:00:52]} Re8 {[%emt 0:02:33]} 18. Ng1 {[%emt 0:04:33]} Bd7 {[%emt 0:02:39]} 19. Nf3 {[%emt 0:04:12]} c5 {[%emt 0:07:06]} 20. Bxe4 {[%emt 0:02:57]} dxe4 {[%emt 0:02:54]} 21. Ne5 {[%emt 0:01:24]} Bxe5 {[%emt 0:01:32]} 22. dxe5 {[%emt 0:00:10]} cxb4 {[%emt 0:01:21]} 23. cxb4 {[%emt 0:00:26]} Rc8 {[%emt 0:00:39]} 24. Qb3 {[%emt 0:02:34]} Be6 {[%emt 0:01:23]} 25. Qb2 {[%emt 0:01:08]} Qd7 {[%emt 0:01:57]} 26. Nc3 {[%emt 0:00:29]} Rc4 {[%emt 0:01:50]} 27. Rfd1 {[%emt 0:03:54]} Qe7 {[%emt 0:03:18]} 28. a3 {[%emt 0:05:36]} Rec8 {[%emt 0:03:10]} 29. Rac1 {[%emt 0:05:38]} Qc7 {[%emt 0:04:08]} 30. Ne2 {[%emt 0:01:44]} Rd8 {[%emt 0:03:59]} 31. Rxd8+ {[%emt 0:10:14]} Qxd8 {[%emt 0:00:54]} 32. Rxc4 {[%emt 0:00:44]} Bxc4 {[%emt 0:00:57]} 33. Qd4 {[%emt 0:00:58]} Qxd4 {[%emt 0:02:49]} 34. Nxd4 {[%emt 0:00:05]} Kg8 {[%emt 0:03:37]} 35. Kg1 {[%emt 0:01:06]} Kf8 {[%emt 0:01:13]} 36. Kf2 {[%emt 0:00:52]} Ke8 {[%emt 0:01:00]} 37. Ke3 {[%emt 0:00:30]} Kd7 {[%emt 0:00:07]} 38. g4 {[%emt 0:01:32]} Be6 {[%emt 0:00:58]} 39. gxf5 {[%emt 0:01:06]} gxf5 {[%emt 0:01:09]} 40. b5 {[%emt 0:01:09]} h6 {[%emt 0:00:43]} 41. h3 {[%emt 0:00:10]} h5 {[%emt 0:00:29]} 42. h4 {[%emt 0:00:04]} Ke7 {[%emt 0:00:03]} 43. Nc6+ {[%emt 0:00:29]} Ke8 {[%emt 0:00:32]} 44. Nxa7 {[%emt 0:00:27]} Bd7 {[%emt 0:00:20]} 45. Nc6 {[%emt 0:00:15]} Bxc6 {[%emt 0:00:01]} 46. bxc6 {[%emt 0:00:05]} Ke7 {[%emt 0:00:17]} 47. Kd4 {[%emt 0:00:29]} Ke6 {[%emt 0:00:05]} 48. a4 {[%emt 0:00:29]} Ke7 {[%emt 0:00:06]} 49. Kc4 {[%emt 0:01:07]} Ke6 {[%emt 0:00:02]} 50. Kb5 {[%emt 0:01:33]} e3 {[%emt 0:00:28]} 51. Kxb6 {[%emt 0:00:26]} e2 {[%emt 0:00:02]} 52. c7 e1=Q {[%emt 0:03:26]} 53. c8=Q+ {[%emt 0:00:13]} Ke7 {[%emt 0:00:26]} 54. Qc7+ {[%emt 0:00:38]} Ke8 {[%emt 0:00:25]} 55. a5 {[%emt 0:00:42]} Qb4+ {[%emt 0:00:57]} 56. Ka7 {[%emt 0:00:26]} Qxf4 {[%emt 0:00:08]} 57. a6 {[%emt 0:00:54]} Qxh4 {[%emt 0:00:16]} 58. e6 {[%emt 0:00:38]} Qd4+ {[%emt 0:00:59]} 59. Kb8 {[%emt 0:00:17]} Qb4+ {[%emt 0:00:07]} 60. Kc8 {[%emt 0:00:13]} Qe7 {[%emt 0:00:57]} 61. Qd7+ {[%emt 0:00:29]} Kf8 {[%emt 0:00:06]} 62. Qd8+ {[%emt 0:00:30]} Qe8 {[%emt 0:00:33]} 63. Qxe8+ {[%emt 0:00:14]} 1-0

[Event "Athens of East Open 2019"]
[Site "Madurai"]
[Date "2019.08.10"]
[Round "2.5"]
[White "Emmanuel Thomas"]
[Black "Balakrishna B V V"]
[Result "1/2-1/2"]
[ECO "C50"]
[WhiteElo "1435"]
[BlackElo "1676"]
[Annotator "NA"]
[PlyCount "84"]
[EventDate "2019.08.10"]
[EventType "swiss"]
[EventCountry "IND"]
[SourceTitle "playchess.com"]
[Source "ChessBase"]
[SourceQuality "1"]
[TimeControl "3600+30"]

1. e4 {[%emt 0:00:00]} e5 {[%emt 0:00:31]} 2. Nf3 {[%emt 0:00:00]} Nc6 {[%emt 0:01:00]} 3. Bc4 {[%emt 0:00:00]} Bc5 {[%emt 0:01:15]} 4. d3 {[%emt 0:00:00]} Nf6 {[%emt 0:04:07]} 5. Bg5 {[%emt 0:00:35]} d6 {[%emt 0:01:02]} 6. h3 {[%emt 0:00:58]} Be6 {[%emt 0:03:37]} 7. Bb5 {[%emt 0:01:02]} O-O {[%emt 0:04:26]} 8. O-O {[%emt 0:00:39]} Nd4 {[%emt 0:00:27]} 9. Nxd4 {[%emt 0:00:09]} Bxd4 {[%emt 0:06:02]} 10. c3 {[%emt 0:00:37]} Bb6 {[%emt 0:06:52]} 11. Nd2 {[%emt 0:00:50]} d5 {[%emt 0:06:53]} 12. exd5 {[%emt 0:00:29]} Bxd5 {[%emt 0:00:56]} 13. c4 {[%emt 0:00:30]} Be6 {[%emt 0:08:25]} 14. Ne4 {[%emt 0:02:01]} Bf5 {[%emt 0:00:21]} 15. Bxf6 {[%emt 0:00:35]} gxf6 {[%emt 0:00:38]} 16. Qf3 {[%emt 0:00:16]} Bxe4 {[%emt 0:03:16]} 17. Qxe4 {[%emt 0:00:17]} c6 {[%emt 0:01:35]} 18. Ba4 {[%emt 0:04:35]} Qd4 {[%emt 0:03:03]} 19. Qf5 {[%emt 0:02:43]} Qh4 {[%emt 0:01:51]} 20. Bc2 {[%emt 0:03:41]} Rad8 {[%emt 0:02:02]} 21. Kh1 {[%emt 0:05:10]} Rd4 {[%emt 0:01:07]} 22. g3 {[%emt 0:03:37]} Qg5 {[%emt 0:00:35]} 23. Qf3 {[%emt 0:02:00]} Kg7 {[%emt 0:01:11]} 24. Rae1 {[%emt 0:03:19]} Rfd8 {[%emt 0:01:37]} 25. Re2 {[%emt 0:05:19]} h5 {[%emt 0:03:26]} 26. b4 {[%emt 0:02:41]} R8d7 {[%emt 0:01:25]} 27. a3 {[%emt 0:03:12]} Qg6 {[%emt 0:00:19]} 28. c5 {[%emt 0:00:33]} Bd8 {[%emt 0:00:35]} 29. Rfe1 {[%emt 0:02:11]} Be7 {[%emt 0:01:22]} 30. Re4 {[%emt 0:00:43]} a5 {[%emt 0:00:05]} 31. Rxd4 {[%emt 0:00:12]} Rxd4 {[%emt 0:00:48]} 32. Re4 {[%emt 0:02:38]} Rxe4 {[%emt 0:00:25]} 33. dxe4 {[%emt 0:02:45]} Qg5 {[%emt 0:00:25]} 34. Qd1 {[%emt 0:10:57]} h4 {[%emt 0:00:10]} 35. g4 {[%emt 0:00:19]} Qf4 {[%emt 0:01:02]} 36. Kg2 {[%emt 0:00:06]} axb4 {[%emt 0:01:30]} 37. axb4 {[%emt 0:00:46]} b6 {[%emt 0:00:02]} 38. cxb6 {[%emt 0:00:30]} Bxb4 {[%emt 0:00:23]} 39. b7 {[%emt 0:03:01]} Bc5 40. b8=Q {[%emt 0:00:30]} Qxf2+ {[%emt 0:00:47]} 41. Kh1 {[%emt 0:00:29]} Qg3 {[%emt 0:00:23]} 42. Qf1 Bf2 1/2-1/2

[Event "Athens of East Open 2019"]
[Site "Madurai"]
[Date "2019.08.10"]
[Round "3.1"]
[White "Chourasiya Hemant"]
[Black "Sankaranarayanan.K"]
[Result "1-0"]
[ECO "C00"]
[WhiteElo "1556"]
[BlackElo "1695"]
[Annotator "NA"]
[PlyCount "69"]
[EventDate "2019.08.10"]
[EventType "swiss"]
[EventCountry "IND"]
[SourceTitle "playchess.com"]
[Source "ChessBase"]
[SourceQuality "1"]
[TimeControl "3600+30"]

1. e4 {[%emt 0:00:00]} e6 {[%emt 0:00:39]} 2. f4 {[%emt 0:00:04]} d5 {[%emt 0:00:46]} 3. e5 {[%emt 0:00:18]} c5 {[%emt 0:00:06]} 4. Nf3 {[%emt 0:00:07]} Nc6 {[%emt 0:00:08]} 5. Bb5 {[%emt 0:00:09]} Qb6 {[%emt 0:00:30]} 6. Nc3 {[%emt 0:00:38]} Nge7 {[%emt 0:02:00]} 7. a4 {[%emt 0:00:34]} a6 {[%emt 0:04:56]} 8. a5 {[%emt 0:00:34]} Qc7 {[%emt 0:07:37]} 9. Ba4 {[%emt 0:01:16]} Bd7 {[%emt 0:00:29]} 10. d3 {[%emt 0:00:55]} h6 11. Be3 {[%emt 0:01:51]} d4 {[%emt 0:05:13]} 12. Ne4 {[%emt 0:00:16]} Nd5 {[%emt 0:02:57]} 13. Bd2 {[%emt 0:00:39]} Be7 {[%emt 0:01:44]} 14. O-O {[%emt 0:01:16]} f6 {[%emt 0:03:52]} 15. c4 {[%emt 0:05:26]} dxc3 {[%emt 0:01:34]} 16. bxc3 {[%emt 0:00:23]} f5 {[%emt 0:01:32]} 17. Nf2 {[%emt 0:04:20]} O-O {[%emt 0:00:12]} 18. Bb3 {[%emt 0:01:33]} Qd8 {[%emt 0:01:41]} 19. Bxd5 {[%emt 0:03:47]} exd5 {[%emt 0:00:12]} 20. Qb3 {[%emt 0:01:24]} Bc8 {[%emt 0:00:13]} 21. c4 {[%emt 0:01:02]} d4 {[%emt 0:00:33]} 22. Nd1 {[%emt 0:02:30]} Rb8 23. Nb2 {[%emt 0:01:13]} Be6 {[%emt 0:01:24]} 24. Qc2 {[%emt 0:04:11]} g5 {[%emt 0:00:15]} 25. Qd1 {[%emt 0:02:10]} Kh7 {[%emt 0:01:18]} 26. fxg5 {[%emt 0:00:47]} f4 {[%emt 0:01:44]} 27. h4 {[%emt 0:04:09]} Bg4 {[%emt 0:00:24]} 28. Qe2 {[%emt 0:00:38]} hxg5 {[%emt 0:00:57]} 29. Nxg5+ {[%emt 0:00:17]} Bxg5 {[%emt 0:01:13]} 30. Qxg4 {[%emt 0:00:06]} Bxh4 {[%emt 0:10:36]} 31. Bxf4 {[%emt 0:02:17]} Qe7 {[%emt 0:00:53]} 32. Rf3 {[%emt 0:03:03]} Rxf4 33. Rxf4 {[%emt 0:00:47]} Bg5 {[%emt 0:00:46]} 34. Qh5+ {[%emt 0:00:14]} Kg7 {[%emt 0:00:23]} 35. Rg4 {[%emt 0:00:14]} 1-0

[Event "Athens of East Open 2019"]
[Site "Madurai"]
[Date "2019.08.10"]
[Round "3.2"]
[White "Nithish Muthukumaran"]
[Black "Tiwari Shivansh"]
[Result "0-1"]
[ECO "B15"]
[WhiteElo "1515"]
[BlackElo "1593"]
[Annotator "NA"]
[PlyCount "158"]
[EventDate "2019.08.10"]
[EventType "swiss"]
[EventCountry "IND"]
[SourceTitle "playchess.com"]
[Source "ChessBase"]
[SourceQuality "1"]
[TimeControl "3600+30"]

1. e4 {[%emt 0:00:00]} c6 {[%emt 0:00:00]} 2. d4 {[%emt 0:00:00]} d5 {[%emt 0:00:00]} 3. Nc3 {[%emt 0:00:09]} g6 {[%emt 0:00:32]} 4. f4 {[%emt 0:06:42]} Bg7 {[%emt 0:02:10]} 5. e5 {[%emt 0:00:45]} h5 {[%emt 0:00:14]} 6. Nf3 {[%emt 0:00:21]} Nh6 {[%emt 0:00:29]} 7. Nh4 {[%emt 0:09:32]} e6 {[%emt 0:02:08]} 8. g3 {[%emt 0:00:35]} b6 {[%emt 0:03:39]} 9. Bd3 {[%emt 0:03:04]} Nf5 {[%emt 0:01:49]} 10. Bxf5 {[%emt 0:07:05]} gxf5 {[%emt 0:00:50]} 11. Be3 {[%emt 0:02:20]} Ba6 {[%emt 0:00:51]} 12. a4 {[%emt 0:01:33]} Nd7 {[%emt 0:02:14]} 13. b4 {[%emt 0:05:54]} Bc4 {[%emt 0:02:13]} 14. Nf3 {[%emt 0:02:52]} Bf8 {[%emt 0:02:07]} 15. Rb1 {[%emt 0:01:20]} a5 {[%emt 0:06:51]} 16. bxa5 {[%emt 0:04:05]} bxa5 {[%emt 0:00:32]} 17. Nd2 {[%emt 0:00:41]} Ba6 {[%emt 0:00:32]} 18. Nb3 {[%emt 0:00:20]} Bb4 {[%emt 0:04:45]} 19. Bd2 {[%emt 0:01:15]} Bc4 {[%emt 0:01:03]} 20. Ne2 {[%emt 0:00:37]} Be7 {[%emt 0:04:10]} 21. Bc3 {[%emt 0:00:42]} h4 {[%emt 0:03:23]} 22. Kf2 {[%emt 0:00:28]} Qc7 {[%emt 0:06:04]} 23. Qd2 {[%emt 0:00:54]} Bd8 {[%emt 0:02:04]} 24. Qe3 {[%emt 0:05:33]} Be7 {[%emt 0:02:47]} 25. Qd2 {[%emt 0:00:06]} Bd8 {[%emt 0:00:52]} 26. Qe3 {[%emt 0:00:03]} Qa7 {[%emt 0:00:51]} 27. Nd2 {[%emt 0:00:34]} Bxe2 {[%emt 0:01:46]} 28. Kxe2 {[%emt 0:01:55]} Nb6 {[%emt 0:04:12]} 29. Ra1 {[%emt 0:02:46]} Be7 {[%emt 0:01:15]} 30. h3 {[%emt 0:02:10]} hxg3 {[%emt 0:00:33]} 31. Qxg3 {[%emt 0:00:13]} Kd7 {[%emt 0:00:36]} 32. Rhg1 {[%emt 0:02:17]} Rh7 {[%emt 0:01:10]} 33. Rh1 {[%emt 0:00:52]} Rah8 {[%emt 0:00:53]} 34. Nf3 {[%emt 0:00:05]} Qa6+ {[%emt 0:00:57]} 35. Kd2 {[%emt 0:01:53]} Nc4+ {[%emt 0:02:07]} 36. Kc1 {[%emt 0:00:30]} c5 {[%emt 0:01:06]} 37. Nd2 {[%emt 0:00:54]} Nxd2 {[%emt 0:01:49]} 38. Kxd2 {[%emt 0:00:16]} cxd4 {[%emt 0:00:16]} 39. Bxd4 {[%emt 0:00:42]} Qc4 {[%emt 0:00:25]} 40. Qe3 {[%emt 0:00:02]} Rxh3 {[%emt 0:07:20]} 41. Rxh3 {[%emt 0:01:58]} Rxh3 {[%emt 0:00:05]} 42. Qxh3 {[%emt 0:00:09]} Qxd4+ {[%emt 0:00:05]} 43. Qd3 {[%emt 0:00:10]} Qxf4+ {[%emt 0:01:40]} 44. Kd1 {[%emt 0:00:41]} Bb4 {[%emt 0:00:50]} 45. c3 {[%emt 0:02:22]} Qxe5 {[%emt 0:00:31]} 46. Rb1 {[%emt 0:00:54]} Qxc3 {[%emt 0:00:14]} 47. Qb5+ {[%emt 0:01:28]} Ke7 {[%emt 0:00:07]} 48. Qe2 {[%emt 0:00:53]} f4 {[%emt 0:00:42]} 49. Rc1 {[%emt 0:01:07]} Qd4+ {[%emt 0:00:04]} 50. Kc2 {[%emt 0:00:18]} Qe4+ {[%emt 0:00:08]} 51. Qxe4 {[%emt 0:00:23]} dxe4 {[%emt 0:00:03]} 52. Kd1 {[%emt 0:00:39]} f5 {[%emt 0:00:22]} 53. Ke2 {[%emt 0:00:42]} Kf6 {[%emt 0:00:21]} 54. Rc6 {[%emt 0:00:47]} f3+ {[%emt 0:00:09]} 55. Ke3 {[%emt 0:00:25]} Ke5 {[%emt 0:00:18]} 56. Rc2 {[%emt 0:01:06]} Kd5 {[%emt 0:00:29]} 57. Rb2 {[%emt 0:01:09]} e5 {[%emt 0:00:24]} 58. Rc2 {[%emt 0:00:13]} f4+ {[%emt 0:00:06]} 59. Kf2 {[%emt 0:00:08]} Bc5+ {[%emt 0:00:13]} 60. Ke1 {[%emt 0:00:14]} e3 {[%emt 0:00:20]} 61. Rc1 {[%emt 0:00:15]} Bb4+ {[%emt 0:00:19]} 62. Kf1 {[%emt 0:00:18]} e2+ {[%emt 0:00:06]} 63. Kf2 {[%emt 0:00:13]} e1=Q+ {[%emt 0:00:08]} 64. Rxe1 {[%emt 0:00:20]} Bxe1+ {[%emt 0:00:04]} 65. Kxe1 {[%emt 0:00:05]} Kc4 {[%emt 0:00:19]} 66. Kf2 {[%emt 0:00:16]} e4 {[%emt 0:00:04]} 67. Ke1 {[%emt 0:00:07]} e3 {[%emt 0:00:06]} 68. Kf1 {[%emt 0:00:04]} Kd3 {[%emt 0:00:10]} 69. Ke1 {[%emt 0:00:14]} f2+ {[%emt 0:00:08]} 70. Kf1 {[%emt 0:00:10]} e2+ {[%emt 0:00:15]} 71. Kxf2 {[%emt 0:00:08]} Kd2 {[%emt 0:00:07]} 72. Kf3 {[%emt 0:00:07]} e1=Q {[%emt 0:00:07]} 73. Kxf4 {[%emt 0:00:04]} Kd3 {[%emt 0:00:09]} 74. Kf5 {[%emt 0:00:08]} Kd4 {[%emt 0:00:04]} 75. Kf6 {[%emt 0:00:11]} Kd5 {[%emt 0:00:09]} 76. Kg6 {[%emt 0:00:08]} Ke6 {[%emt 0:00:13]} 77. Kg5 {[%emt 0:00:09]} Qg3+ {[%emt 0:00:05]} 78. Kh5 {[%emt 0:00:07]} Kf6 {[%emt 0:00:17]} 79. Kh6 {[%emt 0:00:12]} Qh3# {[%emt 0:00:03]} 0-1

[Event "Athens of East Open 2019"]
[Site "Madurai"]
[Date "2019.08.10"]
[Round "3.3"]
[White "Sanil S"]
[Black "Sinha, Abhay Kumar"]
[Result "1-0"]
[ECO "C00"]
[WhiteElo "1462"]
[BlackElo "1665"]
[Annotator "NA"]
[PlyCount "63"]
[EventDate "2019.08.10"]
[EventType "swiss"]
[EventCountry "IND"]
[SourceTitle "playchess.com"]
[Source "ChessBase"]
[SourceQuality "1"]
[TimeControl "3600+30"]

1. e4 {[%emt 0:00:13]} e6 {[%emt 0:00:11]} 2. d4 {[%emt 0:00:16]} b6 {[%emt 0:00:44]} 3. Nc3 {[%emt 0:04:00]} Bb7 {[%emt 0:02:08]} 4. a3 {[%emt 0:01:03]} Nf6 {[%emt 0:01:48]} 5. Bd3 {[%emt 0:00:21]} c5 {[%emt 0:05:18]} 6. Be3 {[%emt 0:05:28]} c4 {[%emt 0:04:29]} 7. Bxc4 {[%emt 0:00:18]} Nxe4 {[%emt 0:00:11]} 8. Nxe4 {[%emt 0:03:27]} Bxe4 {[%emt 0:00:06]} 9. f3 {[%emt 0:00:45]} Bb7 {[%emt 0:06:45]} 10. Qd2 {[%emt 0:01:26]} d5 {[%emt 0:00:22]} 11. Bd3 {[%emt 0:02:34]} Ba6 {[%emt 0:02:05]} 12. Ne2 {[%emt 0:01:37]} Bxd3 {[%emt 0:00:23]} 13. Qxd3 {[%emt 0:00:13]} Be7 {[%emt 0:02:57]} 14. O-O {[%emt 0:00:25]} O-O {[%emt 0:03:55]} 15. f4 {[%emt 0:00:32]} g6 {[%emt 0:02:56]} 16. Rf3 {[%emt 0:05:07]} Nd7 {[%emt 0:00:46]} 17. Ng3 {[%emt 0:07:57]} Bf6 {[%emt 0:02:13]} 18. Raf1 {[%emt 0:03:10]} Rc8 {[%emt 0:02:58]} 19. c3 {[%emt 0:00:52]} a5 {[%emt 0:03:17]} 20. f5 {[%emt 0:07:49]} e5 {[%emt 0:05:17]} 21. Qd2 {[%emt 0:01:40]} e4 {[%emt 0:00:57]} 22. R3f2 {[%emt 0:00:57]} Rc6 {[%emt 0:06:20]} 23. Bh6 {[%emt 0:00:12]} Bg7 {[%emt 0:02:29]} 24. Bxg7 {[%emt 0:03:16]} Kxg7 {[%emt 0:00:14]} 25. fxg6 {[%emt 0:02:01]} hxg6 {[%emt 0:02:10]} 26. Qf4 {[%emt 0:00:42]} Qe7 {[%emt 0:02:00]} 27. Qg4 {[%emt 0:00:16]} Qe6 {[%emt 0:02:54]} 28. Nf5+ {[%emt 0:03:58]} Kg8 {[%emt 0:02:05]} 29. Qg5 {[%emt 0:00:11]} Rc7 {[%emt 0:04:48]} 30. Nh6+ {[%emt 0:03:37]} Kg7 {[%emt 0:00:40]} 31. Rxf7+ {[%emt 0:00:13]} Rxf7 {[%emt 0:00:31]} 32. Rxf7+ {[%emt 0:00:04]} 1-0

[Event "Athens of East Open 2019"]
[Site "Madurai"]
[Date "2019.08.10"]
[Round "3.4"]
[White "John, Christopher"]
[Black "Sushrutha, Reddy"]
[Result "0-1"]
[ECO "C10"]
[WhiteElo "1460"]
[BlackElo "1651"]
[Annotator "NA"]
[PlyCount "72"]
[EventDate "2019.08.10"]
[EventType "swiss"]
[EventCountry "IND"]
[SourceTitle "playchess.com"]
[Source "ChessBase"]
[SourceQuality "1"]
[TimeControl "3600+30"]

1. e4 {[%emt 0:00:00]} e6 {[%emt 0:00:54]} 2. d4 {[%emt 0:00:00]} d5 {[%emt 0:00:04]} 3. Nc3 {[%emt 0:00:00]} dxe4 {[%emt 0:00:32]} 4. Nxe4 {[%emt 0:00:00]} Nd7 {[%emt 0:00:28]} 5. Nf3 {[%emt 0:00:25]} Ngf6 {[%emt 0:00:13]} 6. Bd3 {[%emt 0:01:35]} Nxe4 {[%emt 0:00:51]} 7. Bxe4 {[%emt 0:00:04]} Nf6 {[%emt 0:00:14]} 8. Bg5 {[%emt 0:00:41]} Be7 {[%emt 0:00:15]} 9. Bd3 {[%emt 0:01:18]} O-O {[%emt 0:00:22]} 10. c3 {[%emt 0:01:43]} b6 {[%emt 0:00:17]} 11. Qc2 {[%emt 0:06:15]} h6 12. h4 {[%emt 0:00:54]} Bb7 {[%emt 0:01:09]} 13. O-O-O {[%emt 0:01:47]} a5 {[%emt 0:02:04]} 14. Kb1 {[%emt 0:04:44]} a4 {[%emt 0:00:18]} 15. Ne5 {[%emt 0:01:11]} a3 {[%emt 0:00:37]} 16. b3 {[%emt 0:00:15]} Nd5 {[%emt 0:02:10]} 17. Bd2 {[%emt 0:03:26]} Ba6 {[%emt 0:05:48]} 18. Be4 {[%emt 0:02:24]} f5 {[%emt 0:00:28]} 19. Bf3 {[%emt 0:01:31]} Rc8 {[%emt 0:07:12]} 20. Nc6 {[%emt 0:03:04]} Qd7 {[%emt 0:01:42]} 21. Nxe7+ {[%emt 0:00:03]} Qxe7 {[%emt 0:01:16]} 22. Rhe1 {[%emt 0:00:16]} Qxh4 {[%emt 0:01:17]} 23. Rxe6 {[%emt 0:00:51]} Qd8 {[%emt 0:10:11]} 24. c4 {[%emt 0:00:58]} Nf6 {[%emt 0:01:01]} 25. Bc3 {[%emt 0:01:36]} Ne4 {[%emt 0:00:44]} 26. Bxe4 {[%emt 0:00:59]} fxe4 {[%emt 0:00:05]} 27. Qxe4 {[%emt 0:00:19]} Rf6 {[%emt 0:05:00]} 28. d5 {[%emt 0:00:44]} Rxe6 {[%emt 0:00:45]} 29. Qxe6+ {[%emt 0:00:02]} Kh7 {[%emt 0:01:16]} 30. Qf5+ {[%emt 0:00:24]} Kg8 {[%emt 0:00:27]} 31. Re1 {[%emt 0:01:37]} Qf8 {[%emt 0:00:40]} 32. Qg6 {[%emt 0:00:42]} Qf7 {[%emt 0:00:37]} 33. Qg3 {[%emt 0:02:19]} Rf8 {[%emt 0:00:41]} 34. Re3 {[%emt 0:03:18]} Qf5+ {[%emt 0:02:45]} 35. Ka1 {[%emt 0:00:35]} Rf7 {[%emt 0:00:28]} 36. Rf3 {[%emt 0:01:55]} Qc2 {[%emt 0:00:08]} 0-1

[Event "Athens of East Open 2019"]
[Site "Madurai"]
[Date "2019.08.11"]
[Round "4.1"]
[White "Tiwari Shivansh"]
[Black "Viswak Sen M"]
[Result "0-1"]
[ECO "D35"]
[WhiteElo "1593"]
[BlackElo "1485"]
[Annotator "NA"]
[PlyCount "82"]
[EventDate "2019.08.10"]
[EventType "swiss"]
[EventCountry "IND"]
[SourceTitle "playchess.com"]
[Source "ChessBase"]
[SourceQuality "1"]
[TimeControl "3600+30"]

1. d4 {[%emt 0:00:00]} d5 {[%emt 0:00:00]} 2. c4 {[%emt 0:00:00]} e6 {[%emt 0:00:00]} 3. Nc3 {[%emt 0:00:00]} Nf6 {[%emt 0:00:00]} 4. cxd5 {[%emt 0:00:04]} exd5 {[%emt 0:00:00]} 5. Bg5 {[%emt 0:00:08]} Be7 {[%emt 0:00:04]} 6. e3 {[%emt 0:00:14]} c6 {[%emt 0:01:12]} 7. Bd3 {[%emt 0:00:09]} Nbd7 {[%emt 0:00:05]} 8. Nge2 {[%emt 0:00:38]} Nf8 {[%emt 0:00:19]} 9. O-O {[%emt 0:00:35]} Ne6 {[%emt 0:00:22]} 10. Bxf6 Bxf6 {[%emt 0:00:11]} 11. b4 {[%emt 0:05:28]} O-O 12. Qc2 g6 {[%emt 0:00:55]} 13. a4 {[%emt 0:03:57]} Ng7 {[%emt 0:00:23]} 14. b5 {[%emt 0:00:59]} Bf5 {[%emt 0:00:30]} 15. bxc6 {[%emt 0:01:32]} bxc6 {[%emt 0:00:10]} 16. Rfc1 {[%emt 0:01:14]} Rc8 {[%emt 0:00:58]} 17. Nf4 {[%emt 0:01:51]} Qd6 18. Bxf5 {[%emt 0:01:11]} Nxf5 {[%emt 0:01:03]} 19. Nd3 c5 {[%emt 0:05:31]} 20. dxc5 {[%emt 0:31:14]} Qd7 {[%emt 0:01:10]} 21. Rab1 d4 22. Ne4 {[%emt 0:08:07]} Bg7 {[%emt 0:00:47]} 23. exd4 {[%emt 0:03:24]} Nxd4 {[%emt 0:00:28]} 24. Qd1 {[%emt 0:00:34]} Rc6 {[%emt 0:04:11]} 25. Nd6 {[%emt 0:01:02]} Rxd6 {[%emt 0:01:18]} 26. cxd6 {[%emt 0:00:16]} Qxd6 {[%emt 0:00:06]} 27. Nc5 {[%emt 0:04:52]} Qf4 {[%emt 0:03:14]} 28. g3 {[%emt 0:01:29]} Qf5 29. Nb3 {[%emt 0:02:37]} Nf3+ {[%emt 0:03:12]} 30. Kg2 {[%emt 0:00:58]} Ng5 {[%emt 0:00:20]} 31. Rc5 {[%emt 0:01:01]} Qe4+ {[%emt 0:00:17]} 32. f3 {[%emt 0:00:59]} Nxf3 {[%emt 0:00:12]} 33. Kh3 {[%emt 0:01:22]} Be5 {[%emt 0:02:29]} 34. Rxe5 {[%emt 0:00:30]} Nxe5 {[%emt 0:00:21]} 35. Qe1 Qf5+ {[%emt 0:01:11]} 36. Kg2 {[%emt 0:00:34]} Qc2+ {[%emt 0:01:23]} 37. Kh3 {[%emt 0:00:56]} Nf3 {[%emt 0:00:41]} 38. Qh1 {[%emt 0:00:13]} Ng5+ {[%emt 0:00:24]} 39. Kh4 {[%emt 0:00:25]} Qe2 {[%emt 0:02:36]} 40. Kxg5 {[%emt 0:00:45]} Qe5+ {[%emt 0:00:14]} 41. Kg4 {[%emt 0:00:18]} Qf5+ {[%emt 0:00:06]} 0-1

[Event "Athens of East Open 2019"]
[Site "Madurai"]
[Date "2019.08.11"]
[Round "4.2"]
[White "Sushrutha, Reddy"]
[Black "Phani Kanuri"]
[Result "1/2-1/2"]
[ECO "B12"]
[WhiteElo "1651"]
[BlackElo "1471"]
[Annotator "NA"]
[PlyCount "73"]
[EventDate "2019.08.10"]
[EventType "swiss"]
[EventCountry "IND"]
[SourceTitle "playchess.com"]
[Source "ChessBase"]
[SourceQuality "1"]
[TimeControl "3600+30"]

1. e4 {[%emt 0:00:18]} c6 {[%emt 0:00:00]} 2. d4 {[%emt 0:00:19]} d5 {[%emt 0:00:00]} 3. e5 {[%emt 0:00:18]} Bf5 {[%emt 0:00:00]} 4. g4 {[%emt 0:00:20]} Be4 {[%emt 0:00:53]} 5. f3 {[%emt 0:00:59]} Bg6 {[%emt 0:00:05]} 6. h4 {[%emt 0:00:34]} h5 {[%emt 0:00:36]} 7. Bd3 Bxd3 {[%emt 0:01:07]} 8. Qxd3 {[%emt 0:01:55]} e6 {[%emt 0:00:19]} 9. g5 {[%emt 0:00:28]} g6 {[%emt 0:00:18]} 10. Nd2 {[%emt 0:00:16]} Ne7 {[%emt 0:00:16]} 11. Nf1 {[%emt 0:00:36]} Nd7 {[%emt 0:01:05]} 12. Ng3 {[%emt 0:00:17]} c5 {[%emt 0:00:59]} 13. c3 {[%emt 0:00:13]} Nc6 {[%emt 0:00:19]} 14. a3 {[%emt 0:01:02]} Qb6 {[%emt 0:00:51]} 15. N1e2 {[%emt 0:01:13]} Rc8 {[%emt 0:01:08]} 16. b4 {[%emt 0:00:32]} cxd4 {[%emt 0:01:56]} 17. cxd4 {[%emt 0:00:21]} Bxb4+ {[%emt 0:04:42]} 18. axb4 {[%emt 0:00:54]} Nxb4 {[%emt 0:00:01]} 19. Qb1 {[%emt 0:02:24]} Nc2+ {[%emt 0:00:04]} 20. Kf1 {[%emt 0:01:22]} Nxa1 {[%emt 0:00:06]} 21. Qxa1 {[%emt 0:00:34]} O-O {[%emt 0:00:57]} 22. Kg2 {[%emt 0:03:18]} Rc4 {[%emt 0:02:24]} 23. Ba3 {[%emt 0:04:21]} Rfc8 {[%emt 0:00:16]} 24. Rc1 {[%emt 0:00:28]} Qb3 {[%emt 0:04:16]} 25. Rxc4 {[%emt 0:04:09]} Rxc4 {[%emt 0:00:39]} 26. Bd6 {[%emt 0:01:42]} a6 {[%emt 0:01:11]} 27. Qa5 {[%emt 0:01:04]} Rc8 {[%emt 0:04:18]} 28. Qd2 {[%emt 0:00:54]} Kg7 {[%emt 0:03:44]} 29. Be7 {[%emt 0:00:55]} Rc2 {[%emt 0:02:36]} 30. Qa5 {[%emt 0:03:01]} Qb6 {[%emt 0:00:32]} 31. Bf6+ {[%emt 0:00:41]} Kg8 {[%emt 0:01:00]} 32. Qa3 {[%emt 0:01:27]} Qb2 {[%emt 0:03:08]} 33. Qd3 {[%emt 0:08:08]} Nb6 {[%emt 0:02:31]} 34. Kf2 {[%emt 0:00:20]} Nc4 {[%emt 0:00:27]} 35. Be7 {[%emt 0:01:12]} Rd2 {[%emt 0:00:24]} 36. Bf6 Rc2 37. Nf1 1/2-1/2